bitfinex/quotes_BTCUSD_20250607
["timestamp","ask_amount","ask_price","bid_price","bid_amount"]
[1749260289395,0.35852,104520.0,104510.0,0.75550872]
[1749260289661,0.01852,104520.0,104510.0,0.75550872]
[1749260290241,0.01852,104520.0,104510.0,1.30960269]
[1749260290995,0.01852,104520.0,104510.0,0.75550872]
[1749260291126,0.01852,104520.0,104510.0,0.73760872]
[1749260291326,0.01852,104520.0,104510.0,0.72180872]
[1749260291556,0.01952,104520.0,104510.0,0.72480872]
[1749260291761,0.01952,104520.0,104510.0,0.74180872]
[1749260293029,0.01952,104520.0,104510.0,0.35660872]
[1749260293241,0.01952,104520.0,104510.0,0.74208872]
[1749260293596,0.01952,104520.0,104510.0,0.75808872]
[1749260298906,0.01952,104520.0,104510.0,1.31218269]
[1749260301477,0.01952,104520.0,104510.0,1.32192435]
[1749260301964,0.01952,104520.0,104510.0,1.31218269]
[1749260303306,0.01952,104520.0,104510.0,1.36218269]
[1749260303907,0.01852,104520.0,104510.0,1.35818269]
[1749260304328,0.01952,104520.0,104510.0,1.36418269]
[1749260304561,0.01952,104520.0,104510.0,1.36218269]
[1749260304960,0.01952,104520.0,104510.0,1.36718269]
[1749260305691,0.01952,104520.0,104510.0,1.37674312]
[1749260306232,0.01952,104520.0,104510.0,1.44128397]
[1749260306946,0.01952,104520.0,104510.0,1.37630312]
[1749260307401,0.01952,104520.0,104510.0,1.32630312]
[1749260307745,0.01952,104520.0,104510.0,1.37630312]
[1749260308642,0.01952,104520.0,104510.0,1.32630312]
[1749260308853,0.01952,104520.0,104510.0,1.37630312]
[1749260309439,0.01952,104520.0,104510.0,1.39084397]
[1749260310776,0.001,104520.0,104510.0,1.39084397]
[1749260311352,0.001,104520.0,104510.0,1.58354397]
[1749260325691,0.00043127,104520.0,104510.0,1.58354397]
[1749260326126,0.00043127,104520.0,104510.0,1.83162397]
[1749260328381,0.00043127,104520.0,104510.0,1.83094397]
[1749260329101,0.00043127,104520.0,104510.0,1.63824397]
[1749260329899,0.00043127,104520.0,104510.0,1.25388397]
[1749260330123,0.00043127,104520.0,104510.0,1.63792397]
[1749260331918,0.00043127,104520.0,104510.0,1.62338312]
[1749260334840,0.00043127,104520.0,104510.0,1.89906312]
[1749260339356,0.00043127,104520.0,104510.0,1.43402312]
[1749260339587,0.03173127,104520.0,104510.0,1.25436872]
[1749260341215,0.03173127,104520.0,104510.0,1.80836877]
[1749260342285,0.03173127,104520.0,104510.0,0.87036872]
[1749260342437,0.03173127,104520.0,104510.0,1.25436872]
[1749260343042,0.03173127,104520.0,104510.0,1.80836877]
[1749260343270,0.03173127,104520.0,104510.0,1.25436872]
[1749260347143,0.03173127,104520.0,104510.0,1.80838536]
[1749260347272,0.03173127,104520.0,104510.0,1.80590536]
[1749260352926,0.00043127,104520.0,104510.0,1.80590536]
[1749260354778,0.00043127,104520.0,104510.0,1.25188872]
[1749260354982,0.03173127,104520.0,104510.0,1.80590536]
[1749260355188,0.03173127,104520.0,104510.0,1.42190536]
[1749260355333,0.03173127,104520.0,104510.0,1.80594536]
[1749260356408,0.03173127,104520.0,104510.0,1.25192872]
[1749260357965,0.03173127,104520.0,104510.0,0.95820872]
[1749260358176,0.03173127,104520.0,104510.0,1.25192872]
[1749260358776,0.58574791,104520.0,104510.0,0.95820872]
[1749260358994,0.03173127,104520.0,104510.0,1.25192872]
[1749260359196,0.04128788,104520.0,104510.0,1.25192872]
[1749260362741,0.03173127,104520.0,104510.0,1.25192872]
[1749260364108,0.03173127,104520.0,104510.0,0.86788872]
[1749260364306,0.03173127,104520.0,104510.0,1.25192872]
[1749260379278,0.58582703,104520.0,104510.0,1.25192872]
[1749260390682,0.03173127,104520.0,104510.0,1.25192872]
[1749260391643,0.00043127,104520.0,104510.0,1.80602448]
[1749260391850,0.00043127,104520.0,104510.0,1.25192872]
[1749260396856,0.03143127,104520.0,104510.0,1.25192872]
[1749260399995,0.03143127,104520.0,104510.0,0.86788872]
[1749260400208,0.03143127,104520.0,104510.0,1.25184872]
[1749260400417,0.03143127,104520.0,104510.0,0.95816872]
[1749260400641,0.03143127,104520.0,104510.0,1.25184872]
[1749260400847,0.59509375,104520.0,104510.0,1.25184872]
[1749260401048,0.58552703,104520.0,104510.0,1.25184872]
[1749260403438,0.03143127,104520.0,104510.0,1.25184872]
[1749260406484,0.00043127,104520.0,104510.0,1.25184872]
[1749260407586,0.01683127,104520.0,104510.0,1.25184872]
[1749260407886,0.03223127,104520.0,104510.0,1.25184872]
[1749260410052,0.00043127,104520.0,104510.0,1.25184872]
[1749260413347,0.00043127,104520.0,104510.0,1.25120872]
[1749260413567,0.03193127,104520.0,104510.0,1.25120872]
[1749260416787,0.01613127,104520.0,104510.0,1.25120872]
[1749260417245,0.00043127,104520.0,104510.0,1.25120872]
[1749260418130,0.01563127,104520.0,104510.0,0.86724872]
[1749260418334,0.03163127,104520.0,104510.0,1.25116872]
[1749260423232,0.58572703,104520.0,104510.0,1.25116872]
[1749260430529,0.5851583,104520.0,104510.0,1.25116872]
[1749260434055,0.5691583,104520.0,104510.0,1.25116872]
[1749260434871,0.55409576,104520.0,104510.0,1.25116872]
[1749260435071,0.95412656,104530.0,104520.0,0.22005246]
[1749260435203,0.97205643,104530.0,104520.0,0.40673194]
[1749260435405,0.4083945,104530.0,104520.0,0.40673194]
[1749260435607,0.93499459,104530.0,104520.0,0.40673194]
[1749260436235,0.95292467,104530.0,104520.0,0.40673194]
[1749260436437,0.95292464,104530.0,104520.0,0.40673194]
[1749260436570,0.95292464,104530.0,104520.0,0.41073194]
[1749260437167,0.95292464,104530.0,104520.0,0.41473194]
[1749260437374,0.96249044,104530.0,104520.0,0.41473194]
[1749260437673,0.94456039,104530.0,104520.0,0.41473194]
[1749260437878,0.96249002,104530.0,104520.0,0.32445194]
[1749260438088,0.96249001,104530.0,104520.0,0.70837194]
[1749260439321,0.96248993,104530.0,104520.0,0.70837194]
[1749260439526,0.96248988,104530.0,104520.0,0.70837194]
[1749260440170,0.96248986,104530.0,104520.0,0.70837194]
[1749260440377,0.95292407,104530.0,104520.0,0.70837194]
[1749260440577,0.94456048,104530.0,104520.0,0.70837194]
[1749260440777,0.95292449,104530.0,104520.0,0.70837194]
[1749260440981,0.93499459,104530.0,104520.0,0.70837194]
[1749260442559,0.34959883,104530.0,104520.0,0.70837194]
[1749260442763,0.01792674,104540.0,104530.0,0.20089862]
[1749260442916,0.34,104540.0,104530.0,0.2972981]
[1749260443284,0.34,104540.0,104530.0,0.30686399]
[1749260443490,0.89409576,104540.0,104530.0,0.30686399]
[1749260443700,0.90366065,104540.0,104530.0,0.30686399]
[1749260443883,0.89409576,104540.0,104530.0,0.30986399]
[1749260444291,0.90366065,104540.0,104530.0,0.30986399]
[1749260444499,0.89409576,104540.0,104530.0,0.30986399]
[1749260445113,0.89409576,104540.0,104530.0,0.31186399]
[1749260446581,0.90361268,104540.0,104530.0,0.31186399]
[1749260448678,0.90361268,104540.0,104530.0,0.55998399]
[1749260451530,0.34951692,104540.0,104530.0,0.55998399]
[1749260451708,0.90361268,104540.0,104530.0,0.55998399]
[1749260453523,0.90361268,104540.0,104530.0,0.83566399]
[1749260453933,0.34951692,104540.0,104530.0,0.83566399]
[1749260454135,0.90361268,104540.0,104530.0,0.83566399]
[1749260454554,0.92549576,104550.0,104540.0,0.22001036]
[1749260454762,0.92549576,104550.0,104540.0,0.70020984]
[1749260455223,0.89409576,104550.0,104540.0,0.70020984]
[1749260455763,0.89414374,104550.0,104540.0,0.70120984]
[1749260455986,0.9038135,104550.0,104540.0,0.70120984]
[1749260456926,0.9038135,104550.0,104540.0,0.70220984]
[1749260458958,0.9038135,104550.0,104540.0,0.71780984]
[1749260462150,0.9038135,104550.0,104540.0,0.70220984]
[1749260463310,0.34971774,104550.0,104540.0,0.70220984]
[1749260463495,0.34971774,104550.0,104540.0,0.73360984]
[1749260463496,4.798e-05,104550.0,104540.0,0.73360984]
[1749260463638,4.798e-05,104550.0,104540.0,1.2877056]
[1749260464281,4.798e-05,104550.0,104540.0,1.2867056]
[1749260464911,4.798e-05,104550.0,104540.0,1.2907056]
[1749260465140,4.798e-05,104550.0,104540.0,1.2897056]
[1749260465314,4.798e-05,104550.0,104540.0,1.84780136]
[1749260466411,4.798e-05,104550.0,104540.0,1.89780136]
[1749260466843,4.798e-05,104550.0,104540.0,1.89937695]
[1749260467225,4.798e-05,104550.0,104540.0,1.90637695]
[1749260467611,4.798e-05,104550.0,104540.0,1.9709178]
[1749260471597,4.798e-05,104550.0,104540.0,1.52754221]
[1749260471799,4.798e-05,104550.0,104540.0,0.32340984]
[1749260472027,0.55414374,104550.0,104540.0,0.32340984]
[1749260472235,0.58544374,104550.0,104540.0,0.41360984]
[1749260472388,0.58544374,104550.0,104540.0,0.70704984]
[1749260472811,0.58544374,104550.0,104540.0,0.32340984]
[1749260472967,0.5950078,104550.0,104540.0,0.70704984]
[1749260473175,0.58519196,104550.0,104540.0,0.32340984]
[1749260473374,0.59475612,104550.0,104540.0,0.70704984]
[1749260473575,0.59475602,104550.0,104540.0,0.70704984]
[1749260474009,0.58519196,104550.0,104540.0,0.70304984]
[1749260474248,0.59475602,104550.0,104540.0,0.70304984]
[1749260474481,0.59475602,104550.0,104540.0,0.70204984]
[1749260474886,0.04091204,104550.0,104540.0,0.70404984]
[1749260475597,0.05047629,104550.0,104540.0,0.70404984]
[1749260475802,0.59475593,104550.0,104540.0,0.70404984]
[1749260476339,0.60432009,104550.0,104540.0,0.70404984]
[1749260476541,0.59475593,104550.0,104540.0,0.70404984]
[1749260476938,0.60432009,104550.0,104540.0,0.70404984]
[1749260477903,0.59475593,104550.0,104540.0,0.70404984]
[1749260478038,0.60432009,104550.0,104540.0,0.70404984]
[1749260479057,0.60431999,104550.0,104540.0,0.70404984]
[1749260479666,0.59475593,104550.0,104540.0,0.70404984]
[1749260480564,0.60431999,104550.0,104540.0,0.70404984]
[1749260480945,0.05047601,104550.0,104540.0,0.70404984]
[1749260481307,0.04091195,104550.0,104540.0,0.70164984]
[1749260481868,0.03134798,104550.0,104540.0,0.70164984]
[1749260483800,0.04091195,104550.0,104540.0,0.70164984]
[1749260484129,0.03134798,104550.0,104540.0,0.70164984]
[1749260484327,0.04091195,104550.0,104540.0,0.70164984]
[1749260484992,0.03134798,104550.0,104540.0,0.70164984]
[1749260486252,0.04091195,104550.0,104540.0,0.70164984]
[1749260486579,0.03134798,104550.0,104540.0,0.70164984]
[1749260489322,0.03134798,104550.0,104540.0,0.94972984]
[1749260494180,0.03134798,104550.0,104540.0,1.22536984]
[1749260495460,0.58512514,104550.0,104540.0,1.22536984]
[1749260502720,0.55382514,104550.0,104540.0,1.22536984]
[1749260503046,4.798e-05,104550.0,104540.0,1.22536984]
[1749260505224,0.56962514,104550.0,104540.0,0.93192984]
[1749260505455,0.58512514,104550.0,104540.0,1.22532984]
[1749260510936,0.60425354,104550.0,104540.0,1.22532984]
[1749260511140,0.58512514,104550.0,104540.0,1.22532984]
[1749260511505,0.5946892,104550.0,104540.0,1.22532984]
[1749260511734,0.58512514,104550.0,104540.0,1.22532984]
[1749260512329,0.59468911,104550.0,104540.0,1.22532984]
[1749260514342,0.60425317,104550.0,104540.0,1.22532984]
[1749260514947,0.59468911,104550.0,104540.0,1.22532984]
[1749260515058,0.60425317,104550.0,104540.0,1.22532984]
[1749260516095,0.59468911,104550.0,104540.0,1.22532984]
[1749260516517,0.60425317,104550.0,104540.0,1.22532984]
[1749260517788,1.69889163,104550.0,104540.0,1.20847942]
[1749260518034,1.71680632,104550.0,104540.0,1.22761039]
[1749260518233,1.16302916,104550.0,104540.0,1.23717574]
[1749260518432,1.14511447,104550.0,104540.0,1.23717574]
[1749260518633,1.16302011,104550.0,104540.0,1.23717574]
[1749260518836,0.97172363,104550.0,104540.0,1.2467409]
[1749260518982,0.98128843,104550.0,104540.0,1.2467409]
[1749260519198,1.15467927,104550.0,104540.0,1.23717574]
[1749260519400,1.17258415,104550.0,104540.0,1.24674099]
[1749260519603,1.17258405,104550.0,104540.0,1.24674099]
[1749260520462,1.15467927,104550.0,104540.0,1.24674099]
[1749260520657,1.17258447,104550.0,104540.0,1.24674099]
[1749260520858,1.17258449,104550.0,104540.0,1.24674099]
[1749260521120,1.15467927,104550.0,104540.0,1.24674099]
[1749260521635,1.17257676,104550.0,104540.0,1.24674099]
[1749260521837,1.17257676,104550.0,104540.0,0.86326099]
[1749260522050,1.1630126,104550.0,104540.0,0.62411948]
[1749260522287,1.69765958,104550.0,104540.0,0.91124]
[1749260522503,1.69765976,104550.0,104540.0,1.11211994]
[1749260522719,1.74932068,104550.0,104540.0,1.11211994]
[1749260522960,1.73975588,104550.0,104540.0,1.11211994]
[1749260523408,1.71683886,104550.0,104540.0,1.11211994]
[1749260523688,1.71683886,104550.0,104540.0,1.12168547]
[1749260523910,1.69894833,104550.0,104540.0,1.12168547]
[1749260524114,1.71683855,104550.0,104540.0,1.12168547]
[1749260525225,1.71683855,104550.0,104540.0,1.13125091]
[1749260525427,1.70851304,104550.0,104540.0,1.14081626]
[1749260525647,1.72640253,104550.0,104540.0,1.14081626]
[1749260525983,1.17262537,104550.0,104540.0,1.14081626]
[1749260526105,1.15473588,104550.0,104540.0,1.14081626]
[1749260526306,1.17262537,104550.0,104540.0,1.14081626]
[1749260526509,1.17262462,104550.0,104540.0,0.75729626]
[1749260526750,1.17262462,104550.0,104540.0,1.11211994]
[1749260526950,1.72640178,104550.0,104540.0,1.12168547]
[1749260527152,1.70851304,104550.0,104540.0,1.12168547]
[1749260527366,1.72639881,104550.0,104540.0,1.12168547]
[1749260527574,1.70851304,104550.0,104540.0,1.12168547]
[1749260527776,1.72639881,104550.0,104540.0,1.12168547]
[1749260529238,1.70851304,104550.0,104540.0,1.12168547]
[1749260529438,1.72639831,104550.0,104540.0,1.12168547]
[1749260530747,1.72639682,104550.0,104540.0,1.12168547]
[1749260530967,0.6188425,104550.0,104540.0,1.13125082]
[1749260531180,1.17261967,104550.0,104540.0,1.14081607]
[1749260531354,1.15473588,104550.0,104540.0,1.14081607]
[1749260531756,1.15473588,104550.0,104540.0,1.15038114]
[1749260531757,0.42879118,104550.0,104540.0,1.15038114]
[1749260531950,0.98256834,104550.0,104540.0,1.15038114]
[1749260532313,0.96706834,104550.0,104540.0,1.15038114]
[1749260532725,0.95126834,104550.0,104540.0,1.15038114]
[1749260533613,0.95126825,104550.0,104540.0,1.15038114]
[1749260533995,0.36879798,104550.0,104540.0,1.24678062]
[1749260534157,0.34004798,104550.0,104540.0,1.27888062]
[1749260535658,4.798e-05,104550.0,104540.0,1.27888062]
[1749260538750,0.55382514,104550.0,104540.0,1.27888062]
[1749260540593,4.798e-05,104550.0,104540.0,1.27888062]
[1749260551278,0.55382514,104550.0,104540.0,1.27888062]
[1749260553583,4.798e-05,104550.0,104540.0,1.27888062]
[1749260556097,0.55382514,104550.0,104540.0,1.26226062]
[1749260557074,4.798e-05,104550.0,104540.0,1.27846062]
[1749260557315,0.55382514,104550.0,104540.0,1.27846062]
[1749260559082,4.798e-05,104550.0,104540.0,1.27846062]
[1749260561130,0.55382514,104550.0,104540.0,1.27846062]
[1749260561327,4.798e-05,104550.0,104540.0,1.27846062]
[1749260574177,4.798e-05,104550.0,104540.0,1.83223778]
[1749260574510,4.798e-05,104550.0,104540.0,1.27846062]
[1749260575017,4.798e-05,104550.0,104540.0,1.83223778]
[1749260579019,4.798e-05,104550.0,104540.0,2.38601494]
[1749260579234,4.798e-05,104550.0,104540.0,1.83223778]
[1749260580620,4.798e-05,104550.0,104540.0,2.38601494]
[1749260580840,4.798e-05,104550.0,104540.0,1.83223778]
[1749260582817,4.798e-05,104550.0,104540.0,2.38601494]
[1749260583414,4.798e-05,104550.0,104540.0,2.40055579]
[1749260589682,4.798e-05,104550.0,104540.0,2.39855579]
[1749260590101,4.798e-05,104550.0,104540.0,2.39955579]
[1749260591626,4.798e-05,104550.0,104540.0,2.40255579]
[1749260591825,4.798e-05,104550.0,104540.0,1.00176147]
[1749260592030,4.798e-05,104550.0,104540.0,2.40239579]
[1749260608560,4.798e-05,104550.0,104540.0,2.38619579]
[1749260610271,4.798e-05,104550.0,104540.0,0.89540147]
[1749260610502,0.03114798,104550.0,104540.0,0.86526062]
[1749260610704,0.58492514,104550.0,104540.0,1.24818062]
[1749260611536,0.03114798,104550.0,104540.0,1.24818062]
[1749260616062,0.03114798,104550.0,104540.0,1.80195778]
[1749260617174,0.03114798,104550.0,104540.0,1.41903778]
[1749260617375,0.03114798,104550.0,104540.0,1.24822062]
[1749260617583,0.03114798,104550.0,104540.0,1.80199778]
[1749260620165,0.03114798,104550.0,104540.0,1.24822062]
[1749260620366,0.03114798,104550.0,104540.0,1.80199778]
[1749260620591,0.03114798,104550.0,104540.0,1.24822062]
[1749260620717,0.03114798,104550.0,104540.0,1.80199778]
[1749260626247,0.03114798,104550.0,104540.0,0.86526062]
[1749260626446,0.03114798,104550.0,104540.0,1.24818062]
[1749260628964,0.03114798,104550.0,104540.0,1.80195778]
[1749260630014,0.03114798,104550.0,104540.0,1.24818062]
[1749260633668,0.03114798,104550.0,104540.0,1.80195778]
[1749260636745,0.03114798,104550.0,104540.0,1.24814062]
[1749260637200,0.58492514,104550.0,104540.0,1.24814062]
[1749260641221,0.58492514,104550.0,104540.0,0.86526062]
[1749260641396,0.58492514,104550.0,104540.0,1.24806062]
[1749260648423,0.58492514,104550.0,104540.0,0.86526062]
[1749260648633,0.58492514,104550.0,104540.0,1.24806062]
[1749260651404,0.58492514,104550.0,104540.0,0.86526062]
[1749260651648,0.95361825,104550.0,104540.0,0.86518062]
[1749260651905,1.51695994,104550.0,104540.0,0.75921607]
[1749260652125,0.95361807,104550.0,104540.0,1.15154068]
[1749260652827,0.95361807,104550.0,104540.0,1.14854068]
[1749260653068,0.9632393,104550.0,104540.0,1.14754068]
[1749260653310,0.97280364,104550.0,104540.0,1.14754068]
[1749260653537,0.97280355,104550.0,104540.0,1.14854068]
[1749260654344,0.9632393,104550.0,104540.0,1.14854068]
[1749260655277,0.97280364,104550.0,104540.0,1.14854068]
[1749260655489,0.9632393,104550.0,104540.0,1.14854068]
[1749260656479,0.9632392,104550.0,104540.0,1.14854068]
[1749260656711,0.97280336,104550.0,104540.0,1.14854068]
[1749260660396,0.9632392,104550.0,104540.0,1.14854068]
[1749260660605,0.95367514,104550.0,104540.0,1.14854068]
[1749260660763,0.9632393,104550.0,104540.0,1.14854068]
[1749260661327,0.95367514,104550.0,104540.0,1.14854068]
[1749260661535,0.9632392,104550.0,104540.0,1.14854068]
[1749260662529,0.40946204,104550.0,104540.0,1.14854068]
[1749260662748,0.9632392,104550.0,104540.0,1.14854068]
[1749260662905,0.95367514,104550.0,104540.0,1.14854068]
[1749260666385,0.39989798,104550.0,104540.0,1.14854068]
[1749260666611,0.95367514,104550.0,104540.0,1.14854068]
[1749260672190,0.9632392,104550.0,104540.0,1.14854068]
[1749260672504,0.95367514,104550.0,104540.0,1.14854068]
[1749260673629,0.96323911,104550.0,104540.0,1.14854068]
[1749260673918,0.96323911,104550.0,104540.0,1.14339323]
[1749260674043,0.96323911,104550.0,104540.0,1.14193215]
[1749260674248,0.95367514,104550.0,104540.0,1.14193215]
[1749260675261,0.9632392,104550.0,104540.0,1.14193215]
[1749260675939,0.95367514,104550.0,104540.0,1.14193215]
[1749260676186,0.9632392,104550.0,104540.0,1.14193215]
[1749260676572,0.95367514,104550.0,104540.0,1.14193215]
[1749260676864,0.96323911,104550.0,104540.0,1.14193215]
[1749260679842,0.36879798,104550.0,104540.0,1.23833163]
[1749260680052,4.798e-05,104550.0,104540.0,1.82410879]
[1749260680263,0.34004798,104550.0,104540.0,1.27033163]
[1749260684448,0.89382514,104550.0,104540.0,1.25403163]
[1749260688996,0.34004798,104550.0,104540.0,1.25403163]
[1749260690399,0.34004798,104550.0,104540.0,1.23833163]
[1749260693223,0.89382514,104550.0,104540.0,1.23833163]
[1749260698372,0.34004798,104550.0,104540.0,1.23833163]
[1749260698499,0.89382514,104550.0,104540.0,1.23833163]
[1749260700962,0.34004798,104550.0,104540.0,1.23833163]
[1749260701725,0.89382514,104550.0,104540.0,1.23833163]
[1749260704083,0.34004798,104550.0,104540.0,1.25383163]
[1749260711045,0.34004798,104550.0,104540.0,1.25363163]
[1749260713317,0.34004798,104550.0,104540.0,1.80740879]
[1749260713522,0.34004798,104550.0,104540.0,1.82360879]
[1749260713523,4.798e-05,104550.0,104540.0,1.82360879]
[1749260714793,4.798e-05,104550.0,104540.0,1.26983163]
[1749260715019,4.798e-05,104550.0,104540.0,1.82360879]
[1749260724514,4.798e-05,104550.0,104540.0,1.26983163]
[1749260724720,4.798e-05,104550.0,104540.0,1.82360879]
[1749260726780,4.798e-05,104550.0,104540.0,1.25363163]
[1749260726897,4.798e-05,104550.0,104540.0,1.79210879]
[1749260727535,4.798e-05,104550.0,104540.0,1.23833163]
[1749260730544,4.798e-05,104550.0,104540.0,1.79210879]
[1749260734442,4.798e-05,104550.0,104540.0,1.80760879]
[1749260734864,4.798e-05,104550.0,104540.0,1.82310879]
[1749260735517,4.798e-05,104550.0,104540.0,1.80760879]
[1749260736172,4.798e-05,104550.0,104540.0,1.79210879]
[1749260736382,4.798e-05,104550.0,104540.0,1.80760879]
[1749260737634,4.798e-05,104550.0,104540.0,1.79210879]
[1749260741487,0.92374514,104560.0,104550.0,0.21998933]
[1749260741713,0.92374514,104560.0,104550.0,0.40610881]
[1749260743070,0.92374514,104560.0,104550.0,0.31638881]
[1749260743295,0.36996798,104560.0,104550.0,0.69866881]
[1749260746864,0.92374514,104560.0,104550.0,0.69866881]
[1749260747081,0.92374514,104560.0,104550.0,0.94670881]
[1749260751882,0.92374514,104560.0,104550.0,1.22230881]
[1749260756604,0.92374514,104560.0,104550.0,0.84002881]
[1749260756805,0.92374514,104560.0,104550.0,1.22226881]
[1749260757644,0.58617716,104560.0,104550.0,1.22226881]
[1749260761188,0.0324,104560.0,104550.0,1.22226881]
[1749260761403,0.92437716,104570.0,104560.0,0.21996828]
[1749260761613,0.9339393,104570.0,104560.0,0.69860776]
[1749260762021,0.94350163,104570.0,104560.0,0.94664776]
[1749260762227,0.9339393,104570.0,104560.0,0.94664776]
[1749260762613,0.9349393,104570.0,104560.0,0.94664776]
[1749260762789,0.9359393,104570.0,104560.0,0.94664776]
[1749260766573,0.92637716,104570.0,104560.0,0.94664776]
[1749260766851,0.89577716,104570.0,104560.0,0.94664776]
[1749260767595,0.0172,104570.0,104560.0,0.94664776]
[1749260767806,0.002,104570.0,104560.0,1.50042492]
[1749260768007,0.002,104570.0,104560.0,0.97714776]
[1749260768662,0.001,104570.0,104560.0,0.97714776]
[1749260769068,0.92507716,104580.0,104570.0,0.21994725]
[1749260769224,0.90897716,104580.0,104570.0,0.31634673]
[1749260769736,0.92507716,104580.0,104570.0,0.31634673]
[1749260770228,0.93463839,104580.0,104570.0,0.31634673]
[1749260770437,0.92507716,104580.0,104570.0,0.31634673]
[1749260771381,0.3713,104580.0,104570.0,0.31634673]
[1749260771579,0.92607716,104580.0,104570.0,0.31634673]
[1749260771932,0.92707716,104580.0,104570.0,0.31634673]
[1749260772882,0.93663839,104580.0,104570.0,0.31634673]
[1749260773095,0.92707716,104580.0,104570.0,0.31634673]
[1749260773613,0.92707716,104580.0,104570.0,0.59194673]
[1749260777386,0.93663839,104580.0,104570.0,0.59194673]
[1749260777698,0.92707716,104580.0,104570.0,0.59194673]
[1749260780588,0.93663839,104580.0,104570.0,0.59194673]
[1749260784017,0.92707716,104580.0,104570.0,0.59194673]
[1749260784235,0.93663839,104580.0,104570.0,0.59194673]
[1749260784966,0.93663839,104580.0,104570.0,0.68158673]
[1749260787000,1.49041555,104580.0,104570.0,0.68158673]
[1749260787211,1.49997687,104580.0,104570.0,0.68158673]
[1749260788518,1.49041555,104580.0,104570.0,0.68158673]
[1749260789162,1.49997696,104580.0,104570.0,0.68158673]
[1749260789362,1.49041555,104580.0,104570.0,0.68158673]
[1749260789479,1.49997687,104580.0,104570.0,0.68158673]
[1749260789681,1.49997687,104580.0,104570.0,0.92958673]
[1749260789962,0.94619971,104580.0,104570.0,0.92958673]
[1749260790167,0.92707716,104580.0,104570.0,0.92958673]
[1749260790385,0.342,104580.0,104570.0,0.92958673]
[1749260790582,0.89577716,104580.0,104570.0,0.92958673]
[1749260795892,0.92717716,104580.0,104570.0,0.92958673]
[1749260796094,0.94629971,104580.0,104570.0,0.92958673]
[1749260797804,0.93673839,104580.0,104570.0,0.92958673]
[1749260798216,1.49051555,104580.0,104570.0,0.92958673]
[1749260798701,1.50007687,104580.0,104570.0,0.92958673]
[1749260799082,1.49051555,104580.0,104570.0,0.92958673]
[1749260799285,1.50007696,104580.0,104570.0,0.92958673]
[1749260799483,0.9462998,104580.0,104570.0,0.92958673]
[1749260799887,0.9558614,104580.0,104570.0,0.92958673]
[1749260800098,0.9462998,104580.0,104570.0,0.92958673]
[1749260800316,0.93673839,104580.0,104570.0,0.92958673]
[1749260800526,1.72835493,104580.0,104570.0,1.2123444]
[1749260800748,1.51920061,104580.0,104570.0,0.83994673]
[1749260800946,1.52876248,104580.0,104570.0,1.22190709]
[1749260801147,1.51920043,104580.0,104570.0,1.24103184]
[1749260801299,1.50963865,104580.0,104570.0,1.24103184]
[1749260801473,1.52755179,104580.0,104570.0,1.24103184]
[1749260801669,1.51920061,104580.0,104570.0,1.24103184]
[1749260801871,1.51920052,104580.0,104570.0,1.24103184]
[1749260802079,1.53711321,104580.0,104570.0,1.24103184]
[1749260802474,1.51920052,104580.0,104570.0,1.24103184]
[1749260802687,1.53711346,104580.0,104570.0,1.24103184]
[1749260802932,1.53711328,104580.0,104570.0,0.76267236]
[1749260803135,1.52755141,104580.0,104570.0,1.14463236]
[1749260803338,1.51920043,104580.0,104570.0,1.14463236]
[1749260803577,1.52755132,104580.0,104570.0,1.14463236]
[1749260803710,1.5371131,104580.0,104570.0,1.14463236]
[1749260803928,1.52755132,104580.0,104570.0,1.14463236]
[1749260804208,1.5275475,104580.0,104570.0,1.14463236]
[1749260804411,1.53710928,104580.0,104570.0,1.14463236]
[1749260804615,1.53710927,104580.0,104570.0,1.14463236]
[1749260804962,1.53710928,104580.0,104570.0,1.14463236]
[1749260805166,1.53710919,104580.0,104570.0,1.14463236]
[1749260805726,1.53710877,104580.0,104570.0,1.14463236]
[1749260806066,1.52754708,104580.0,104570.0,1.14463236]
[1749260807428,1.52754467,104580.0,104570.0,1.14463236]
[1749260807819,1.50963856,104580.0,104570.0,1.14463236]
[1749260808269,1.52754467,104580.0,104570.0,1.14463236]
[1749260808484,1.52754457,104580.0,104570.0,1.14463236]
[1749260809167,1.52476506,104580.0,104570.0,1.14463236]
[1749260809382,0.61464386,104580.0,104570.0,1.14463236]
[1749260809710,0.59673839,104580.0,104570.0,1.14463236]
[1749260811401,0.58717716,104580.0,104570.0,1.14463236]
[1749260813830,0.002,104580.0,104570.0,1.24103184]
[1749260814087,0.55577716,104580.0,104570.0,1.27313184]
[1749260814729,0.002,104580.0,104570.0,1.27313184]
[1749260815371,0.55577716,104580.0,104570.0,1.27313184]
[1749260817052,0.002,104580.0,104570.0,1.27313184]
[1749260821137,0.55577716,104580.0,104570.0,1.27313184]
[1749260821587,0.002,104580.0,104570.0,1.27313184]
[1749260829523,0.001,104580.0,104570.0,1.27313184]
[1749260830015,0.93650149,104590.0,104580.0,0.21992621]
[1749260830281,0.94619968,104590.0,104580.0,0.31632569]
[1749260831307,0.94719968,104590.0,104580.0,0.31632569]
[1749260831685,0.94719968,104590.0,104580.0,0.29720259]
[1749260831898,0.93763936,104590.0,104580.0,0.31632569]
[1749260832391,0.93863936,104590.0,104580.0,0.31632569]
[1749260832720,0.94819968,104590.0,104580.0,0.31632569]
[1749260834440,0.93863936,104590.0,104580.0,0.31632569]
[1749260835150,0.94819977,104590.0,104580.0,0.31632569]
[1749260835347,0.93863936,104590.0,104580.0,0.31632569]
[1749260835768,0.94819968,104590.0,104580.0,0.31632569]
[1749260835972,0.95776009,104590.0,104580.0,0.31632569]
[1749260836115,0.94819977,104590.0,104580.0,0.31632569]
[1749260836306,0.93863936,104590.0,104580.0,0.31632569]
[1749260836665,0.94819977,104590.0,104580.0,0.31632569]
[1749260837676,0.93863936,104590.0,104580.0,0.31632569]
[1749260837940,0.94819968,104590.0,104580.0,0.31632569]
[1749260838600,0.93863936,104590.0,104580.0,0.31632569]
[1749260838827,0.90543936,104590.0,104580.0,0.31632569]
[1749260839268,0.90543936,104590.0,104580.0,0.40588569]
[1749260843625,0.3516622,104590.0,104580.0,0.40588569]
[1749260843798,0.90543936,104590.0,104580.0,0.40588569]
[1749260844005,0.90543936,104590.0,104580.0,0.65388569]
[1749260847682,0.3516622,104590.0,104580.0,0.65388569]
[1749260847950,0.90543936,104590.0,104580.0,0.65388569]
[1749260848393,0.00213787,104590.0,104580.0,1.23846285]
[1749260849020,0.00113787,104590.0,104580.0,1.23846285]
[1749260849367,0.00113787,104590.0,104580.0,1.24046285]
[1749260850247,0.00013787,104590.0,104580.0,1.24046285]
[1749260850448,0.00013787,104590.0,104580.0,1.25111845]
[1749260853936,0.00013787,104590.0,104580.0,1.24146285]
[1749260855471,0.00013787,104590.0,104580.0,0.67268569]
[1749260859935,0.00013787,104590.0,104580.0,1.22646285]
[1749260861017,0.00013787,104590.0,104580.0,1.24306285]
[1749260865021,0.00013787,104590.0,104580.0,1.51858285]
[1749260865429,0.00013787,104590.0,104580.0,2.07236001]
[1749260867370,0.00013787,104590.0,104580.0,0.97934654]
[1749260867537,0.00013787,104590.0,104580.0,2.08690086]
[1749260868222,0.00013787,104590.0,104580.0,2.11562886]
[1749260869965,0.00013787,104590.0,104580.0,3.10940602]
[1749260870122,0.00013787,104590.0,104580.0,2.83388602]